Cogmind - Beta 10.2 @@@ ROGUE MODE // 2021.11.18 @ 11:23:50 Player: ILikeGoodFood Result: Self-destructed Performance ------------- Evolutions (1) 500 Regions Visited (2) 400 Robots Destroyed (43) 215 Value Destroyed (1023) 1023 Prototype IDs (4) 80 Alien Tech Used (0) 0 Bonus (28) 28 TOTAL SCORE: 2246 Bonus ------- High Alert Combat Kills 28 Cogmind --------- Core Integrity 52/400 Matter 9/300 Energy 99/100 System Corruption 0% Temperature Cool (0) Movement Core (50) Location -9/Materials Parts ------- > --- POWER (1) -------- (None) > --- PROPULSION (2) --- (None) > --- UTILITY (4) ------ Structural Scanner Visual Processing Unit Signal Interpreter Hacking Suite > --- WEAPON (2) ------- Mini Grenade Launcher > --- INVENTORY (4) ---- Heavy Ion Engine Flight Unit Light EM Pulse Cannon Improved Datajack Peak State ------------ > --- POWER ------------ Heavy Ion Engine > --- PROPULSION ------- Flight Unit Flight Unit > --- UTILITY ---------- Structural Scanner Visual Processing Unit Signal Interpreter Hacking Suite > --- WEAPON ----------- Mini Grenade Launcher Mini Grenade Launcher > --- INVENTORY -------- Improved Ion Engine Flight Unit Light EM Pulse Cannon Improved Datajack [Rating: 16] Favorites ----------- Power Light Ion Engine Engine Light Ion Engine Propulsion Flight Unit Wheel Wheel Flight Unit Flight Unit Utility Visual Processing Unit Device Structural Scanner Storage Small Storage Unit Processor Visual Processing Unit Hackware Hacking Suite Weapon Light Assault Rifle Energy Gun EM Pulse Gun Energy Cannon Beam Cannon Ballistic Gun Light Assault Rifle Launcher Mini Grenade Launcher Special Weapon Mining Laser Build | -11 -10 -9 ------- Run | Scr Mat Mat Slots Evolved 2 | . . 2 Power . | . . . Propulsion . | . . . Utility 2 | . . 2 Weapon . | . . . Parts Attached 54 | 5 33 16 Power 12 | 1 6 5 Engine 12 | 1 6 5 Core . | . . . Reactor . | . . . Propulsion 10 | 1 8 1 Treads . | . . . Leg . | . . . Wheel 2 | 1 1 . Hover . | . . . Flight 8 | . 7 1 Utility 8 | 1 4 3 Device 3 | . 2 1 Storage 1 | 1 . . Processor 3 | . 2 1 Hackware 1 | . . 1 Protection . | . . . Artifact . | . . . Weapon 24 | 2 15 7 Energy Gun 2 | 1 1 . Energy Cannon 3 | . 1 2 Ballistic Gun 11 | 1 10 . Ballistic Cannon . | . . . Launcher 3 | . . 3 Special Weapon 5 | . 3 2 Impact Weapon . | . . . Slashing Weapon . | . . . Piercing Weapon . | . . . Special Melee Weapon . | . . . Unidentified Prototypes 1 | . . 1 Parts Lost 13 | . 5 8 Power 4 | . 2 2 Propulsion 3 | . 1 2 Utility 1 | . . 1 Weapon 5 | . 2 3 Highest Loss Streak 4 | . 4 4 Average Slot Usage (%) 94 | . 92 96 Engine 11 | . 12 10 Wheel 1 | . 3 . Flight 21 | . 21 20 Device 15 | . 13 18 Storage 1 | . 2 . Processor 15 | . 9 22 Hackware 1 | . . 3 Energy Cannon 1 | . 2 1 Ballistic Gun 12 | . 22 1 Launcher 8 | . . 17 Special Weapon 1 | . 1 1 Naked Turns . | . . . Heaviest Build 14 | 13 14 11 Greatest Support 20 | 10 20 8 Greatest Overweight (x) 2 | 2 1 2 Average Overweight (x) . | . . . Largest Inventory Capacity 6 | 6 6 4 Average Capacity 4 | 5 4 4 Most Carried 6 | 6 5 4 Average Carried 3 | 2 3 3 Final Capacity 6 | 6 4 4 Final Carried 6 | 6 4 4 Class Distribution -------------------- 55% | Scavenger-Mutant 21% | Scavenger-Skirmisher 19% | Mutant 3% | Scavenger-Scout Dominant Class ---------------- Scavenger-Mutant | -10/Materials Scavenger-Skirmisher | -9/Materials Resources | -11 -10 -9 ----------- Run | Scr Mat Mat Matter Collected 882 | 253 370 259 Remotely . | . . . Salvage Created 1031 | 20 463 548 Parts 85 | 5 35 45 Haulers Intercepted 1 | . . 1 Recyclers Shooed . | . . . Parts Field Recycled . | . . . Retrieved Matter . | . . . Parts Self-Destructed . | . . . Prevented . | . . . Kills | -11 -10 -9 ------- Run | Scr Mat Mat Combat Hostiles Destroyed 28 | . 12 16 Guns 12 | . 12 . Cannons 4 | . . 4 AOE 12 | . . 12 Classes Destroyed 11 | 1 4 6 Worker 2 | . . 2 Builder 1 | . . 1 Tunneler 2 | 1 1 . Hauler 1 | . . 1 Recycler 1 | . 1 . Operator 2 | . . 2 Watcher 6 | . 2 4 Swarmer 11 | . 8 3 Grunt 11 | . 4 7 Duelist 1 | . . 1 Sentry 5 | . . 5 Best Kill Streak 8 | 1 5 8 Combat Bots Only 4 | . 4 4 Max Kills in Single Turn 2 | 1 1 2 Gunslinging . | . . . Exploded 2 | . . 2 Melee . | . . . Uniques/NPCs Destroyed . | . . . Combat | -11 -10 -9 -------- Run | Scr Mat Mat Damage Taken 1747 | . 844 903 Core 543 | . 195 348 Absorbed by Shields . | . . . Core Remaining (%) 61 | 100 22 . Volleys Fired 127 | 1 80 46 Largest 2 | 2 2 2 Hottest 120 | 60 120 120 Shots Fired 219 | 2 144 73 Gun 148 | 2 133 13 Cannon 15 | . . 15 Launcher 35 | . . 35 Special 21 | . 11 10 Kinetic 140 | 1 126 13 Thermal 31 | . 11 20 Explosive 35 | . . 35 Electromagnetic 13 | 1 7 5 Robot Hit Streak 17 | . 17 13 Robot Miss Streak 7 | 2 7 4 Penetration Max . | . . . Secondary Targets 3 | . 3 . Max Gunslinging Chain 1 | . 1 . Shots Hit Robots 115 | . 78 37 Core Hits 74 | 1 30 43 Critical Hits 2 | . 2 . Critical Kills 1 | . 1 . Critical Parts Destroyed 1 | . 1 . Melee Attacks . | . . . Impact . | . . . Slashing . | . . . Piercing . | . . . Sneak Attacks . | . . . Combat Hostiles . | . . . Follow-up Attacks . | . . . Damage Inflicted 2436 | 13 673 1750 Guns 768 | 13 673 82 Cannons 236 | . . 236 Explosions 1336 | . . 1336 Melee . | . . . Ramming . | . . . Kinetic 721 | . 639 82 Thermal 324 | . . 324 Explosive 1246 | . . 1246 Electromagnetic 145 | 13 34 98 Impact . | . . . Slashing . | . . . Piercing . | . . . Highest Corruption . | . . . Average Corruption . | . . . Corruption Purged . | . . . Overload Shots . | . . . Overflow Damage 66 | . . 66 Projectiles 1 | . . 1 Explosions 65 | . . 65 Melee . | . . . Knockbacks . | . . . Impact . | . . . Kinetic . | . . . Secondary . | . . . Self-Inflicted Damage 41 | . . 41 Shots 3 | . . 3 Rammed . | . . . Targets Rammed . | . . . Kicked . | . . . Crushed . | . . . Highest Temperature 272 | . 90 272 Average Temperature 50 | . 16 85 Received Heat Transfer 375 | . 78 297 Siege Activations . | . . . Robots Corrupted . | . . . Combat Hostiles . | . . . Parts Fried 1 | . . 1 Impact Corruptions . | . . . Robots Melted . | . . . Combat Hostiles . | . . . Parts Melted 2 | . . 2 Heat Transferred 646 | . . 646 Parts Sabotaged . | . . . Parts Stolen . | . . . Parts Stripped . | . . . Power Chain Reactions 2 | . . 2 Missiles Intercepted . | . . . Alert | -11 -10 -9 ------- Run | Scr Mat Mat Peak Influence 584 | 5 238 584 Initial 20 | . 3 20 Average 160 | 1 131 208 Maximum Alert Level 2 | . 1 2 Low Security (%) 76 | 100 85 63 Level 1 18 | . 14 23 Level 2 5 | . . 13 Level 3 . | . . . Level 4 . | . . . Level 5 . | . . . High Security . | . . . Max Security . | . . . Squads Dispatched 4 | . 1 3 Investigation 1 | . . 1 Extermination . | . . . Reinforcement 3 | . 1 2 Assault . | . . . Garrison . | . . . Intercept . | . . . Construction Impeded . | . . . Haulers Reinforced . | . . . Stealth | -11 -10 -9 --------- Run | Scr Mat Mat Distress Signals 6 | . 4 2 Communications Jammed . | . . . Distress Signals . | . . . Times Spotted 56 | . 25 31 Peak Tracking Total 6 | . 4 6 Tactical Retreats 5 | . 3 2 Traps | -11 -10 -9 ------- Run | Scr Mat Mat Traps Triggered 1 | . . 1 Indirectly . | . . . Trap Hack Attempts . | . . . Triggered . | . . . Disarmed . | . . . Reprogrammed 1 | . . 1 Reused . | . . . Traps Extracted . | . . . Installed . | . . . Triggered . | . . . Machines | -11 -10 -9 ---------- Run | Scr Mat Mat Machines Disabled 12 | . . 12 Max in Single Turn 3 | . . 3 Machines Sabotaged . | . . . Garrisons Compromised . | . . . Overloaded Fab Kills . | . . . Fab Network Shutdowns . | . . . Hacking | -11 -10 -9 --------- Run | Scr Mat Mat Machines Accessed 12 | . 7 5 Terminals 6 | . 4 2 Fabricators . | . . . Repair Stations 2 | . 1 1 Recycling Units 4 | . 2 2 Scanalyzers . | . . . Garrison Access . | . . . Total Hacks 43 | . 26 17 Successful 32 | . 20 12 Failed 11 | . 6 5 Catastrophic . | . . . Database Lockouts . | . . . Manual . | . . . Terminals 18 | . 9 9 Fabricators . | . . . Repair Stations 15 | . 11 4 Recycling Units 10 | . 6 4 Scanalyzers . | . . . Garrison Access . | . . . Terminal Hacks 12 | . 8 4 Record 1 | . . 1 Prototype ID Bank 2 | . 1 1 Branch Access Points 1 | . 1 . Alert Level 1 | . 1 . Locate Traps 3 | . 2 1 Reprogram Traps 1 | . . 1 Dispatch Records 1 | . 1 . Transport Status 1 | . 1 . Investigation Status 1 | . 1 . Fabricator Hacks . | . . . Repair Station Hacks 12 | . 8 4 Scan Component 6 | . 4 2 Repair 6 | . 4 2 Recycling Unit Hacks 8 | . 4 4 Process 2 | . 1 1 Report Inventory 4 | . 2 2 Retrieve Matter 2 | . 1 1 Scanalyzer . | . . . Garrison Access Hacks . | . . . Unauthorized Hacks . | . . . Terminals . | . . . Fabricators . | . . . Repair Stations . | . . . Recycling Units . | . . . Scanalyzers . | . . . Garrison Access . | . . . Data Cores Recovered . | . . . Used . | . . . Hacking Detections 8 | . 5 3 Full Trace Events 1 | . . 1 Feedback Events . | . . . Feedback Blocked . | . . . Robot Schematics Acquired . | . . . Robots Built . | . . . Matter . | . . . Time . | . . . Total Robot Build Rating . | . . . Part Schematics Acquired . | . . . Parts Built . | . . . Matter . | . . . Time . | . . . Total Part Build Rating . | . . . Parts Repaired 6 | . 4 2 Time 156 | . 104 52 Parts Recycled . | . . . Recycled Matter 112 | . 109 3 Retrieved Matter 294 | . 291 3 Retrieved Components . | . . . Parts Scanalyzed . | . . . Part Schematics Acquired . | . . . Parts Damaged . | . . . Bothacking | -11 -10 -9 ------------ Run | Scr Mat Mat Used RIF Installer . | . . . Robots Hacked . | . . . Non-combat . | . . . Combat . | . . . Robot Hacks Applied . | . . . Relay Couplers Released . | . . . Robots Rewired . | . . . Allies Hacked . | . . . Hacks Repelled . | . . . Allies | -11 -10 -9 -------- Run | Scr Mat Mat Total Allies . | . . . Largest Group . | . . . Highest-Rated Group . | . . . Highest-Rated Ally . | . . . Total Orders . | . . . Ally Attacks . | . . . Total Damage . | . . . Kills . | . . . Allies Corrupted . | . . . Allies Melted . | . . . Intel | -11 -10 -9 ------- Run | Scr Mat Mat Robot Analysis Total . | . . . Derelict Logs Recovered . | . . . Drone Launches . | . . . Drone Recoveries . | . . . Exploration | -11 -10 -9 ------------- Run | Scr Mat Mat Turns Passed 1604 | 66 808 730 Spaces Moved 1280 | 53 704 523 Core 49 | 19 9 21 Treads . | . . . Legs . | . . . Wheels 83 | 34 49 . Hover . | . . . Flight 1148 | . 646 502 Fastest Speed 37 | 50 37 37 Average Speed 57 | 89 40 77 Slowest Speed 200 | 150 90 200 Overloaded Moves . | . . . Propulsion Burnouts . | . . . Robots Hopped 2 | . 1 1 Cave-ins Triggered . | . . . Exploration Rate (%) 47 | 4 90 49 Regions Visited 2 Branch Regions . Pre-discovered Areas . | . . . Known Exits Taken . | . . . Unknown Exits Taken 2 | 1 1 . Scrap Searched . | . . . Spaces Dug 11 | . 7 4 Terrain Destroyed 220 | . 10 210 Melee . | . . . Projectile 15 | . 10 5 AOE 205 | . . 205 Terrain Rammed . | . . . Walls Destroyed . | . . . Machines Disabled . | . . . Actions | -11 -10 -9 --------- Run | Scr Mat Mat Total 1901 | 69 1079 753 Wait 389 | . 230 159 Move 1274 | 52 701 521 Hop 2 | . 1 1 Pick Up 36 | 11 18 7 Fast Attach 7 | . 4 3 Attach 23 | 5 11 7 Detach 1 | . . 1 Swap 24 | . 18 6 Drop 18 | . 16 2 Fire 127 | 1 80 46 Melee . | . . . Ram . | . . . Kick . | . . . Crush . | . . . Escape Stasis . | . . . Rewire . | . . . Trap . | . . . Miscellaneous . | . . . Route ------- -11/Scrapyard -10/Materials (discovered 2 exits: *Mat / *Min) -9/Materials (discovered 2 exits: [*Mat] / [*Min]) History --------- Turn | Location | Event 5 | -11/Scrapyard | Discovered new exit (range 16) 67 | -11/Scrapyard | Entered Materials 187 | -10/Materials | Core integrity fell below 50% 211 | -10/Materials | Lost 4 parts (1p1n2w) 412 | -10/Materials | Discovered new exit (range 12) 516 | -10/Materials | Build established: Scavenger-Mutant 743 | -10/Materials | Identified exit to Mines 758 | -10/Materials | Discovered new exit (range 13) 790 | -10/Materials | Repaired Lgt. Ion Engine 817 | -10/Materials | Repaired Flight Unit 844 | -10/Materials | Repaired Flight Unit 872 | -10/Materials | Repaired Lgt. Assault Rifle 875 | -10/Materials | Entered another Materials area 875 | -9/Materials | Evolved 2 slots: Utility x2 1015 | -9/Materials | Lost 3 parts (1p2w) 1242 | -9/Materials | Discovered new exit (range 6) 1305 | -9/Materials | Build established: Scavenger-Skirmisher 1326 | -9/Materials | Discovered new exit (range 18) 1446 | -9/Materials | Repaired Lgt. Ion Engine 1473 | -9/Materials | Repaired Flight Unit 1561 | -9/Materials | Core integrity fell below 50% 1596 | -9/Materials | Core integrity fell below 20% 1605 | -9/Materials | Self-destructed Last Messages --------------- The unstable cave ceiling collapses. Acquired 5 matter. Lgt. Ion Engine destroyed. Y-45 Defender destroyed. A-02 Transporter destroyed. K-01 Serf collects debris. The unstable cave ceiling collapses. R-06 Scavenger collects Lgt. Ion Engine. Acquired 16 matter. K-01 Serf collects debris. R-06 Scavenger collects Lgt. Assault Rifle. Mni. Grenade Launcher destroyed. The unstable cave ceiling collapses. K-01 Serf collects debris. R-06 Scavenger collects Prototype Flight Unit. K-01 Serf collects debris. R-06 Scavenger collects Prototype Flight Unit. K-01 Serf collects debris. Acquired 9 matter. K-01 Serf collects debris. Map ----- +----------------------------------------------------+ | ?????????????????????????????????????????????????? | | ?????????????????????????????????????????????????? | | ?????????????????????????????????????????????????? | | ?????????????????????????????????????????????????? | | ?????????????????????????????????????????????????? | | ?????????????????????????????????????????????????? | | ?????????????????????????????????????????????????? | | ?????????????????????????????????????????????????? | | ??????????????????????????????????????????## ????? | | ??????????????????????????????????????? ????# | | ??????????????????????????????????????? ???# | | ?????????????????????????????????? ?? ??## | | ????????????????????????????????? ## | | ???????????????????????????????? ? ## | | ??????????????????????????????? a % | | ?????????????????????????????? ? % | | ????????????????????????????"" ?? | | ????????????????????????????"" """??""" " | | ????????????????????????????"Tk """ """ " | | ????????????????????????????"" """ """ " | | ??????????????????###???????"" | | ?????????????????+ ???#### | | ???????????#?????# ???# a g | | ???????????# ????# ??# g #??????##T####T | | ???????????# ?###!!! # ??????????????## | | ??????????## ## !!! s /@ #????????????????????? | | ??????????# !!!s # #????????????????????? | | ??????????# #### #????????????????????? | | ??????????# == # #????????????????????? | | ??????????# ""%=# r #????????????????????? | | ??????????## * #s #????????????????????? | | ???????????# # #????????????????????? | | ??????????????# % + #????????????????????? | | ??????????????# # ; #????????????????????? | | ??????????????## #????????????????????? | | ??????????????## * #????????????????????? | | ???????????????# ! [ k #????????????????????? | | ???????????????# #????????????????????? | | ???????????????# # #????????????######### | | ???????????????# "" " + + ???????????# ### | | ???????????????# """"" # # T ?????????# | | ???????????????# """"" # #?" ???????# | | ???????????????# """ # #?? ???????# | | ???????????????# # #???##???????# ### | | ???????????????########## #????????????## ## | | ????????????????????????# #?????????????# ## | | ????????????????????????# #?????????????# ## | | ????????????????????????# #?????????????# ## | | ????????????????????????# #?????????????# ##! | | ?????????????????######## #?????????????# ##!] | +----------------------------------------------------+ Best States ------------- Heat Dissipation 28 Energy Generation 12 Energy Capacity 265 Matter Stores 300 Matter Capacity 300 Sight Range 18 Robot Scan Range 10 Terrain Scan Range 16 Terrain Scan Density 10 Evasion (%) 62 Targeting Accuracy 5 Offensive Hacking 10 Item Schematics ----------------- None Robot Schematics ------------------ None Fabricated ------------ Nothing Alien Tech Used ----------------- None Achievements -------------- None Challenges ------------ None Game ------ Seed BattleLinearMapper Manual? 0 Play Time 00:34:43 Cumulative 15.8 hours Start 2021.11.18 @ 10:49:28 End 2021.11.18 @ 11:23:50 Sessions 1 Manual Loads 0 Difficulty Rogue Special Mode None Game No. 29 Rogue 29 Adventurer 0 Explorer 0 Win Type - Total 0 Types 0/0/0/0/0/0/0/0/0 Lore% 17 Gallery% 22 Achievement% 16 Wizard Run 0 Options --------- ASCII 0 Keyboard 0 Movement Mouse Keybinds 0 Fullscreen 1 Font 18/SmallcapsGlow Map View 76x50 Tactical HUD 0 Map Filters NONE Filters NONE Steam 1 RUN: 3a168657-5c31-4b17-b9fd-dd071a5a80dc